bitfinex/quotes_ETHUSD_20250414
["timestamp","ask_amount","ask_price","bid_price","bid_amount"]
[1744646771129,7.31421334,1626.2,1626.1,0.05]
[1744646773936,6.15241,1625.4,1625.1,0.05]
[1744646774229,7.10031,1625.4,1625.1,0.05]
[1744646774433,7.10039,1625.4,1625.1,6.20328]
[1744646774800,7.10039,1625.4,1625.1,0.05]
[1744646775132,7.10039,1625.4,1625.1,6.20335]
[1744646775323,7.78653,1625.6,1625.2,6.15273]
[1744646775519,0.55,1625.5,1625.1,6.20328]
[1744646775720,6.15306,1625.3,1625.1,0.05]
[1744646775895,6.15308,1625.2,1625.1,0.05]
[1744646776096,7.73548,1625.2,1625.1,0.05]
[1744646776300,1.5824,1625.2,1625.1,0.05]
[1744646776525,2.355927,1625.2,1625.1,0.05]
[1744646776722,6.926607,1625.2,1625.1,0.05]
[1744646776930,0.773527,1625.2,1625.1,0.05]
[1744646777198,1.5591,1625.6,1625.1,0.05]
[1744646777402,10.71091,1625.6,1625.2,6.1528]
[1744646777711,6.15254,1625.4,1625.1,1.6296]
[1744646777898,12.30518,1625.4,1625.1,1.6296]
[1744646778101,12.30518,1625.4,1625.1,0.05]
[1744646778302,8.24318,1625.2,1625.1,0.05]
[1744646778735,2.0901,1625.2,1625.1,0.05]
[1744646779044,6.14,1625.3,1625.1,0.05]
[1744646779045,12.29272,1625.3,1625.1,0.05]
[1744646779237,6.15308,1625.2,1625.1,0.05]
[1744646779399,6.14,1625.3,1625.1,6.20329]
[1744646779602,6.14,1625.4,1625.2,6.15293]
[1744646779935,6.14,1625.6,1625.2,6.15288]
[1744646780443,7.7525,1625.8,1625.5,6.15195]
[1744646780746,7.7525,1625.8,1625.6,6.15154]
[1744646780906,8.42752133,1626.1,1625.9,6.15043]
[1744646781106,0.61490485,1626.2,1626.0,6.14978]
[1744646781306,6.14804,1626.6,1625.9,9.15043]
[1744646781543,1.5561,1626.7,1626.4,6.14841]
[1744646781743,1.5561,1626.7,1626.3,1.6413]
[1744646781914,6.1473,1626.8,1626.4,6.14827]
[1744646782245,6.14786,1626.6,1626.3,7.79018]
[1744646782405,1.229398,1626.8,1626.3,7.78989]
[1744646782611,7.79214,1626.9,1626.5,6.14797]
[1744646783021,1.6452,1626.9,1626.6,6.14757]
[1744646783234,6.46671362,1627.1,1626.3,4.6413]
[1744646783235,1.5065,1627.1,1626.3,4.6413]
[1744646783431,6.14643,1627.0,1626.6,6.14757]
[1744646783636,7.6525,1627.1,1626.7,6.14739]
[1744646783814,1.5065,1627.1,1626.8,6.14686]
[1744646784238,1.5065,1627.1,1626.3,13.66111389]
[1744646784239,2.271719,1627.1,1626.3,0.46123339]
[1744646784510,6.14667,1626.9,1626.6,6.14777]
[1744646784729,6.14731,1626.8,1626.3,1.5961]
[1744646785056,6.14783,1626.6,1626.2,6.1492]
[1744646785220,0.614783,1626.5,1626.2,6.1492]
[1744646785547,6.14834,1626.5,1626.1,7.74547]
[1744646785953,1.641,1626.7,1626.1,7.74547]
[1744646785954,7.78867,1626.7,1626.1,4.5961]
[1744646786153,7.78851,1626.7,1626.2,6.14916]
[1744646786310,6.14818,1626.5,1626.1,11.19578435]
[1744646786510,6.14818,1626.5,1626.1,16.895]
[1744646786756,12.29664,1626.5,1626.1,10.74548]
[1744646786952,6.14866,1626.4,1626.1,1.5961]
[1744646787124,6.14936,1626.2,1625.9,49.5613]
[1744646787326,6.14936,1626.2,1625.5,7.76223]
[1744646787327,6.15069,1625.9,1625.5,7.76223]
[1744646787530,6.15151,1625.7,1625.3,7.69756]
[1744646787841,6.15086,1625.8,1625.4,6.15206]
[1744646788026,6.15121,1625.7,1625.3,14.30316731]
[1744646788356,6.15121,1625.7,1625.4,6.15224]
[1744646788537,7.381416,1625.7,1625.3,7.69741]
[1744646788849,6.15207,1625.5,1625.2,8.89]
[1744646789163,7.370206,1625.7,1625.4,6.1522]
[1744646789354,7.370206,1625.7,1625.3,6.15265]
[1744646789355,13.521646,1625.7,1625.3,6.15265]
[1744646789650,12.29144,1625.7,1625.3,12.30523]
[1744646790768,12.29138,1625.7,1625.3,12.30517]
[1744646790967,6.70181,1625.6,1625.2,15.043]
[1744646791170,12.29133,1625.7,1625.3,6.15255]
[1744646791371,8.039219,1625.7,1625.4,6.15199]
[1744646791869,6.14,1625.7,1625.2,15.043]
[1744646792071,6.14,1625.7,1625.6,6.15157]
[1744646792269,7.7096,1625.9,1625.6,6.15157]
[1744646792457,13.8602,1625.9,1625.6,6.15157]
[1744646792771,13.8602,1625.9,1625.7,6.15102]
[1744646792772,6.14,1625.9,1625.7,6.15102]
[1744646793274,6.754,1625.9,1625.5,7.78124]
[1744646793447,7.7199,1625.8,1625.4,6.15218]
[1744646793648,1.5688,1625.8,1625.3,4.6523]
[1744646793971,6.14,1625.9,1625.7,6.15104]
[1744646794346,6.14,1625.9,1625.8,6.15081]
[1744646794740,6.14,1626.2,1626.1,6.14968]
[1744646794981,6.14,1626.4,1626.3,6.14892]
[1744646795279,12.28752,1626.7,1626.2,10.5307]
[1744646795573,6.14,1626.7,1626.5,12.29615]
[1744646795777,6.10255284,1626.7,1626.5,12.29615]
[1744646795973,6.10255284,1626.7,1626.4,6.1484]
[1744646796138,6.10255284,1626.7,1626.4,12.29677]
[1744646796340,6.10255284,1626.7,1626.5,6.14816]
[1744646796576,6.10255284,1626.7,1626.5,6.14804]
[1744646796873,6.10255284,1626.7,1626.2,10.9975708]
[1744646797080,6.10255284,1626.7,1626.4,12.2967]
[1744646797241,6.10255284,1626.7,1626.5,6.14812]
[1744646797440,6.10255284,1626.7,1626.5,6.14801]
[1744646797640,6.10255284,1626.7,1626.5,12.29601]
[1744646797990,6.10255284,1626.7,1626.6,6.14779]
[1744646798151,6.10255284,1626.7,1626.6,7.43884756]
[1744646798338,6.10255284,1626.7,1626.6,12.04584756]
[1744646798981,6.10255284,1627.1,1627.0,6.14628]
[1744646799198,6.10255284,1627.3,1627.2,6.14552]
[1744646799342,6.10255284,1627.3,1627.2,10.43609411]
[1744646799540,6.10255284,1627.3,1627.0,7.75327]
[1744646799541,6.10255284,1627.3,1627.0,7.75325]
[1744646799747,6.14564,1627.2,1626.8,6.14697]
[1744646799975,6.10255284,1627.1,1626.8,6.14697]
[1744646800284,6.14649,1627.0,1626.7,10.3793]
[1744646800506,6.1468,1626.9,1626.6,6.14777]
[1744646800717,6.10255284,1626.8,1626.4,1.82821182]
[1744646800905,6.10255284,1626.8,1626.5,6.14815]
[1744646801109,6.10255284,1626.8,1626.6,6.14761]
[1744646801410,6.10255284,1626.8,1626.7,6.14741]
[1744646802215,6.10255284,1626.8,1626.7,7.43838245]
[1744646802513,6.10255284,1627.2,1626.9,6.14663]
[1744646802666,18.39398284,1627.2,1626.8,6.14695]
[1744646802871,6.10255284,1627.2,1627.0,6.14613]
[1744646803103,6.10255284,1627.2,1627.0,6.14596]
[1744646803666,6.14652,1627.0,1626.7,7.70927]
[1744646803864,6.14652,1627.0,1626.4,10.50071603]
[1744646803865,6.14652,1627.0,1626.6,12.29535]
[1744646804103,6.10255284,1626.9,1626.6,6.14769]
[1744646804303,6.10255284,1626.9,1626.7,6.14735]
[1744646804512,6.10255284,1627.1,1627.0,6.14628]
[1744646804716,1.5551,1627.5,1627.2,6.14525]
[1744646804717,6.10255284,1627.4,1627.2,6.14525]
[1744646804864,12.24733284,1627.4,1627.1,6.14588]
[1744646805071,6.10255284,1627.4,1627.2,6.1454]
[1744646805307,6.10255284,1627.4,1627.2,12.29073]
[1744646805525,6.10255284,1627.4,1627.3,6.14514]
[1744646806529,12.24747284,1627.4,1627.1,6.1457]
[1744646806688,6.71280812,1627.4,1627.1,6.14569]
[1744646807329,6.14575,1627.2,1626.9,4.5144]
[1744646807830,6.14618,1627.1,1626.7,13.8643]
[1744646808128,6.14552,1627.2,1626.7,1.5695]
[1744646808297,6.14602,1627.1,1626.8,6.14676]
[1744646808485,13.86867,1627.3,1626.9,6.1465]
[1744646808692,6.10255284,1627.4,1627.1,6.14565]
[1744646809119,6.10255284,1627.4,1626.9,14.99759]
[1744646809429,6.10255284,1627.4,1627.3,6.14514]
[1744646809629,6.10255284,1627.4,1627.2,12.29074]
[1744646809828,6.14412,1627.6,1627.3,6.14503]
[1744646810026,6.14442,1627.5,1627.2,7.73341]
[1744646810233,0.614412,1627.6,1626.9,16.60935]
[1744646810390,6.14688,1626.9,1626.6,6.14766]
[1744646810594,6.10255284,1627.1,1626.9,6.1466]
[1744646810794,6.10255284,1627.1,1626.9,7.7845]
[1744646811133,7.61875284,1627.5,1627.0,6.14628]
[1744646811317,13.76335284,1627.5,1627.2,6.14535]
[1744646811514,6.10255284,1627.5,1627.0,6.14625]
[1744646811747,6.10255284,1627.5,1627.3,6.14502]
[1744646811942,12.24700284,1627.5,1627.0,14.99613]
[1744646812234,15.10443028,1627.4,1627.0,8.85]
[1744646812532,12.24703284,1627.5,1627.1,6.14583]
[1744646812719,18.39163284,1627.5,1627.2,6.14552]
[1744646812920,12.24703284,1627.5,1627.2,12.29088]
[1744646813104,6.10255284,1627.5,1627.2,6.14536]
[1744646813298,6.10255284,1627.5,1627.3,6.14502]
[1744646813498,12.24696284,1627.5,1627.2,6.14544]
[1744646813911,12.24696284,1627.5,1627.2,6.14539]
[1744646814111,6.14489,1627.4,1627.1,6.14584]
[1744646814531,6.14487,1627.4,1627.1,6.14584]
[1744646814726,12.24742284,1627.4,1627.1,6.14584]
[1744646814929,12.24742284,1627.4,1627.1,12.29161]
[1744646815136,6.10255284,1627.4,1627.1,6.14577]
[1744646815430,6.10255284,1627.4,1627.0,8.85]
[1744646815640,6.14525,1627.3,1627.0,8.85]
[1744646815840,18.39242284,1627.4,1627.0,14.99614]
[1744646816030,12.24736284,1627.4,1627.0,14.99614]
[1744646816639,6.14522,1627.3,1627.0,14.99614]
[1744646817147,6.14522,1627.3,1627.0,21.14227]
[1744646817443,6.14522,1627.3,1627.0,23.46719339]
[1744646817651,6.14522,1627.3,1627.0,17.32116339]
[1744646817942,6.14522,1627.3,1627.0,17.32118339]
[1744646818249,18.39240284,1627.4,1627.1,6.14589]
[1744646818406,6.1452,1627.3,1627.0,17.32110339]
[1744646818743,12.24736284,1627.4,1627.0,17.32106339]
[1744646819100,18.39248284,1627.4,1627.0,23.46722339]
[1744646819300,6.14516,1627.3,1627.0,17.32106339]
[1744646819717,6.1459,1627.1,1627.0,8.85]
[1744646819925,6.10255284,1627.1,1627.0,6.14628]
[1744646821036,6.10255284,1627.1,1626.8,0.4671234]
[1744646821257,6.10255284,1627.1,1626.9,6.14643]
[1744646821763,6.10255284,1627.1,1627.0,6.14628]
[1744646821967,6.10255284,1627.1,1627.0,7.375551]
[1744646822322,2.84e-06,1627.5,1627.0,11.99670757]
[1744646822518,2.84e-06,1627.5,1627.4,6.14477]
[1744646822722,2.84e-06,1627.8,1627.6,6.14391]
[1744646822957,2.84e-06,1627.8,1627.5,6.14418]
[1744646822958,6.14326284,1627.8,1627.4,7.65277]
[1744646823176,2.84e-06,1627.8,1627.4,1.5081]
[1744646823376,2.84e-06,1627.8,1627.5,12.28878]
[1744646823576,6.14326284,1627.8,1627.5,6.14439]
[1744646824091,0.55000284,1627.8,1627.2,4.5356]
[1744646824304,6.14417,1627.6,1627.3,6.14504]
[1744646824440,6.1445,1627.5,1627.1,14.9946]
[1744646824778,1.6085,1627.5,1627.2,6.14529]
[1744646825075,7.67673,1627.7,1627.4,6.14474]
[1744646825281,13.82072,1627.7,1627.3,12.29004]
[1744646825603,6.14413,1627.6,1627.3,6.145]
[1744646826079,6.14413,1627.6,1627.3,12.29]
[1744646826383,7.67674,1627.7,1627.4,6.14476]
[1744646826681,2.84e-06,1627.8,1627.5,6.14439]
[1744646826883,2.84e-06,1627.8,1627.4,0.614476]
[1744646826884,6.14365,1627.7,1627.4,12.903646]
[1744646827388,6.14365,1627.7,1627.2,7.644899]
[1744646827389,6.14441,1627.5,1627.2,7.644849]
[1744646827684,12.28847,1627.6,1627.2,13.790239]
[1744646828054,12.28838,1627.6,1627.3,6.14503]
[1744646828299,2.84e-06,1627.8,1627.4,1.5893]
[1744646828584,2.84e-06,1627.8,1627.7,6.14363]
[1744646828766,2.84e-06,1627.8,1627.7,7.372376]
[1744646829167,0.37050955,1628.4,1628.1,6.14212]
[1744646829168,2.84e-06,1628.2,1628.1,6.14212]
[1744646829482,2.84e-06,1628.2,1628.0,6.14235]
[1744646829684,2.84e-06,1628.2,1628.0,12.28469]
[1744646829881,2.84e-06,1628.2,1628.0,6.14234]
[1744646830083,6.14177284,1628.2,1627.9,6.14278]
[1744646830284,2.84e-06,1628.2,1627.9,7.527116]
[1744646830592,2.84e-06,1628.2,1627.9,7.527136]
[1744646830805,2.84e-06,1628.2,1627.9,13.669886]
[1744646830977,6.14175284,1628.2,1627.9,7.527116]
[1744646831181,2.84e-06,1628.2,1627.9,7.527086]
[1744646831479,6.14188284,1628.2,1627.9,1.384366]
[1744646831671,6.14188284,1628.2,1627.8,6.1431]
[1744646831672,6.14182284,1628.2,1627.8,6.1431]
[1744646831867,6.14182284,1628.2,1627.9,6.14271]
[1744646832284,12.28375284,1628.2,1627.9,6.14271]
[1744646832513,12.28375284,1628.2,1627.8,6.14319]
[1744646832671,12.28375284,1628.2,1627.8,12.28634]
[1744646833008,1.77837812,1628.2,1627.6,16.56048]
[1744646833206,7.75846,1628.1,1627.8,6.14312]
[1744646833407,7.75835,1628.1,1627.8,12.28622]
[1744646833609,7.75835,1628.1,1627.8,6.1431]
[1744646833810,13.90063,1628.1,1627.7,6.14354]
[1744646834183,0.55,1627.9,1627.3,7.65722]
[1744646834400,6.14402,1627.6,1627.2,7.644899]
[1744646834597,6.14402284,1627.6,1627.2,7.644899]
[1744646834798,6.14402284,1627.6,1627.2,1.499429]
[1744646834799,12.28906,1627.5,1627.2,1.499429]
[1744646835003,2.84e-06,1627.6,1627.4,6.14472]
[1744646835313,2.84e-06,1627.6,1627.5,7.72509]
[1744646835605,7.79549284,1627.9,1627.6,6.14394]
[1744646835809,6.14401,1627.6,1627.2,13.789799]
[1744646835998,6.14492,1627.4,1627.2,1.499429]
[1744646836197,6.14492,1627.4,1627.1,8.812]
[1744646836389,2.84e-06,1627.6,1627.1,14.9578]
[1744646836588,6.14472,1627.5,1627.1,21.10357]
[1744646837012,12.28927,1627.5,1627.1,14.95777]
[1744646837213,12.28927,1627.5,1627.1,21.10352]
[1744646837425,12.28927,1627.5,1627.1,8.812]
[1744646837426,6.14487,1627.4,1627.1,8.812]
[1744646837776,6.14486,1627.4,1627.1,8.812]
[1744646837983,6.1445,1627.5,1627.1,8.87345501]
[1744646838182,6.14489,1627.4,1627.1,8.812]
[1744646838383,6.14527,1627.3,1627.1,8.812]
[1744646838588,6.14478,1627.4,1627.1,9.84493]
[1744646839692,6.69439,1627.5,1627.1,9.84493]
[1744646839915,6.1453,1627.3,1627.1,8.812]
[1744646840126,6.1453,1627.3,1627.0,1.5173]
[1744646840421,6.14446,1627.5,1627.0,7.66331]
[1744646840577,0.55000284,1627.6,1627.1,6.14589]
[1744646840918,6.1448,1627.4,1627.1,6.14589]
[1744646841116,6.14475,1627.5,1627.1,1.380939]
[1744646841315,1.56680284,1628.0,1627.5,6.14439]
[1744646841522,6.14299,1627.9,1627.5,6.14439]
[1744646841716,6.14339,1627.8,1627.5,6.14426]
[1744646841936,6.14401,1627.6,1627.4,1.6425]
[1744646842118,2.84e-06,1627.7,1627.2,8.813]
[1744646842306,1.6125,1627.6,1627.2,14.95852]
[1744646842512,6.14456,1627.5,1627.2,8.813]
[1744646842897,12.29006,1627.4,1627.1,1.5649]
[1744646843109,6.14494,1627.4,1627.1,7.71074]
[1744646843331,6.14521,1627.3,1627.1,2.950591]
[1744646843529,12.29053,1627.3,1627.1,2.950591]
[1744646843735,12.28982,1627.4,1627.1,1.5649]
[1744646843933,6.14527,1627.3,1627.1,1.5649]
[1744646844136,6.14481,1627.4,1627.1,1.5649]
[1744646844748,6.14526,1627.3,1627.1,1.5649]
[1744646846052,6.14481,1627.4,1627.1,1.5649]
[1744646846360,12.28979,1627.4,1627.1,2.950615]
[1744646847062,6.14481,1627.4,1627.1,2.950615]
[1744646847344,6.118295,1627.4,1627.1,2.950615]
[1744646847546,6.14424,1627.6,1627.2,0.06145112]
[1744646847749,6.14473,1627.5,1627.1,1.5649]
[1744646847912,12.28948,1627.5,1627.1,1.5649]
[1744646848352,6.14456,1627.5,1627.1,13.85659]
[1744646848648,6.14456,1627.5,1627.2,1.385659]
[1744646848847,6.14342,1627.8,1627.3,6.20655584]
[1744646849009,3.87056118,1627.9,1627.6,1.6601]
[1744646849010,6.46355118,1627.9,1627.6,1.6601]
[1744646849357,6.14467,1627.5,1627.3,8.813]
[1744646849566,6.14477,1627.4,1627.3,8.813]
[1744646849707,6.14467,1627.5,1627.3,8.813]
[1744646850105,6.14467,1627.5,1627.3,9.8328659]
[1744646850325,1.6453,1627.9,1627.5,7.72028]
[1744646850522,6.46313233,1628.0,1627.6,0.06143524]
[1744646850736,6.143,1627.9,1627.5,7.72039]
[1744646851012,12.28689,1627.8,1627.6,0.772039]
[1744646851237,12.28689,1627.8,1627.5,1.576]
[1744646851425,12.28596,1627.9,1627.5,7.72027]
[1744646851625,6.14332,1627.8,1627.5,7.72025]
[1744646851919,6.14423,1627.6,1627.3,9.8328659]
[1744646852148,6.14378,1627.7,1627.3,16.03939819]
[1744646852310,6.14295,1627.9,1627.5,6.14415]
[1744646852657,12.28603,1627.9,1627.5,12.28864]
[1744646852828,7.75425,1628.0,1627.6,7.65871]
[1744646853154,6.14293,1627.9,1627.6,7.65861]
[1744646853363,6.14216,1628.1,1627.7,6.14328]
[1744646853519,6.14203,1628.2,1627.8,6.143]
[1744646853715,6.14203,1628.2,1627.8,6.2044243]
[1744646853954,6.14203,1628.2,1627.8,7.43922973]
[1744646854258,6.1428,1628.0,1627.6,13.80248]
[1744646854556,6.1428,1628.0,1627.6,13.80245]
[1744646854718,6.1428,1628.0,1627.6,7.65857]
[1744646855059,6.1428,1628.0,1627.6,13.80247]
[1744646855214,6.1428,1628.0,1627.6,7.65857]
[1744646855415,6.14278,1628.0,1627.6,1.5147]
[1744646855656,12.28561,1628.0,1627.6,1.5147]
[1744646855834,12.28544,1628.0,1627.6,7.71996039]
[1744646856035,6.14197,1628.2,1627.7,6.14353]
[1744646856237,6.14291,1627.9,1627.6,1.5147]
[1744646856436,6.14291,1627.9,1627.6,2.4034874]
[1744646856655,6.14338,1627.8,1627.6,1.5147]
[1744646856974,12.28595,1627.9,1627.6,1.5147]
[1744646857457,12.28596,1627.9,1627.6,1.5147]
[1744646857660,1.5207,1628.0,1627.6,1.5147]
[1744646857820,6.14374,1627.7,1627.4,1.5105]
[1744646858021,6.14374,1627.7,1627.4,3.25933859]
[1744646858239,6.14419,1627.6,1627.4,1.5105]
[1744646858581,6.14381,1627.7,1627.4,1.5105]
[1744646859458,6.14403,1627.6,1627.4,1.5105]
[1744646860274,6.14403,1627.6,1627.0,4.05564844]
[1744646860275,6.1455,1627.3,1626.9,1.6573]
[1744646860478,1.5912,1627.6,1627.0,6.20757353]
[1744646860801,6.14498,1627.4,1627.1,0.62075735]
[1744646860998,12.2901,1627.4,1627.0,6.14617]
[1744646861300,6.14498,1627.4,1627.0,12.29234]
[1744646861458,12.2901,1627.4,1627.0,6.14617]
[1744646862196,6.14527,1627.3,1626.9,7.80392]
[1744646862396,6.14477,1627.4,1626.9,1.6573]
[1744646862605,6.14524,1627.3,1626.9,7.80385]
[1744646862752,6.14485,1627.4,1627.0,6.20762491]
[1744646862952,12.28979,1627.4,1627.0,6.9941174]
[1744646863152,6.14516,1627.3,1627.0,0.78649249]
[1744646863796,12.29048,1627.3,1627.0,0.78649249]
[1744646863976,6.14516,1627.3,1627.0,0.78649249]
[1744646864295,6.14555,1627.2,1627.0,0.78649249]
[1744646864598,12.29124,1627.2,1626.9,1.6573]
[1744646864777,6.14555,1627.2,1626.9,1.6573]
[1744646864969,12.29132,1627.2,1626.9,1.6573]
[1744646865165,6.14596,1627.1,1626.9,1.6573]
[1744646865493,6.14596,1627.1,1626.8,8.776]
[1744646865494,6.14641,1627.0,1626.8,8.776]
[1744646865858,13.88784,1627.2,1626.8,9.80497]
[1744646866158,6.14557,1627.2,1626.8,15.95167]
[1744646866383,11.2406,1627.5,1626.8,9.80497]
[1744646866582,6.14607,1627.1,1626.8,9.80497]
[1744646866780,6.14665,1626.9,1626.8,8.776]
[1744646866994,6.14653,1627.0,1626.8,8.776]
[1744646867169,6.14642,1627.0,1626.8,8.776]
[1744646867569,11.2406,1627.5,1626.4,7.05564844]
[1744646867570,1.5462,1627.1,1626.4,7.05564844]
[1744646867909,1.5462,1627.1,1626.0,6.14978]
[1744646867910,6.14918,1626.3,1625.9,1.5563]
[1744646868060,6.14953,1626.2,1625.9,2.35730202]
[1744646868279,6.69779,1626.6,1625.9,2.35730202]
[1744646868280,6.14875,1626.4,1625.9,2.35730202]
[1744646868484,12.29758,1626.4,1625.9,7.70645]
[1744646868679,6.1496,1626.2,1625.9,1.5563]
[1744646868932,0.55,1626.2,1625.7,1.6045]
[1744646869082,6.15069,1625.9,1625.7,1.6045]
[1744646869288,6.1493,1626.2,1625.7,1.6045]
[1744646869483,4.505,1626.3,1625.7,2.64265]
[1744646869682,6.15042,1626.0,1625.7,2.64265]
[1744646869923,12.30084,1626.0,1625.7,2.64265]
[1744646870221,12.30084,1626.0,1625.6,8.777]
[1744646870222,6.14968,1626.1,1625.6,8.777]
[1744646870407,6.15058,1625.9,1625.6,8.777]
[1744646870611,12.30012,1626.0,1625.5,1.5013]
[1744646870920,12.30012,1626.0,1625.1,0.05]
[1744646870921,6.15248,1625.4,1625.1,0.05]
[1744646871225,6.15183,1625.6,1625.2,6.15304]
[1744646871523,6.15122,1625.7,1625.3,6.15249]
[1744646871728,6.15094,1625.8,1625.4,7.74389]
[1744646871885,6.15094,1625.8,1625.5,0.06151456]
[1744646872082,6.15137,1625.7,1625.4,1.5918]
[1744646872386,6.15137,1625.7,1625.4,2.366245]
[1744646872693,6.15164,1625.6,1625.4,2.366245]
[1744646873229,6.15195,1625.5,1625.2,1.5399]
[1744646873433,6.15295,1625.3,1625.1,0.05]
[1744646873591,6.15308,1625.2,1625.1,0.05]
[1744646874133,7.65353,1625.5,1625.1,0.05]
[1744646874313,6.15242,1625.4,1625.1,0.05]
[1744646874528,6.15283,1625.3,1625.1,0.05]
[1744646874714,6.15308,1625.2,1625.1,0.05]
[1744646875234,6.15239,1625.4,1625.1,6.20346]
[1744646875433,6.15271,1625.3,1625.1,0.05]
[1744646875597,6.15308,1625.2,1625.1,0.05]
[1744646876004,6.917859,1625.4,1625.1,0.05]
[1744646876243,6.15308,1625.2,1625.1,0.05]
[1744646876403,6.15275,1625.3,1625.1,0.05]
[1744646876715,6.15308,1625.2,1625.1,0.05]
[1744646878446,7.383663,1625.2,1625.1,0.05]
[1744646878627,9.026763,1625.2,1625.1,0.05]
[1744646878829,6.15275,1625.3,1625.1,0.05]
[1744646879341,6.15308,1625.2,1625.1,0.05]
[1744646880231,12.30567,1625.3,1625.1,0.05]
[1744646880544,1.6304,1625.4,1625.1,0.05]
[1744646880858,6.15308,1625.2,1625.1,0.05]
[1744646881169,12.30576,1625.3,1625.1,0.05]
[1744646881460,6.15308,1625.2,1625.1,0.05]
[1744646882522,6.15287,1625.3,1625.1,0.05]
[1744646882725,1.6212,1625.9,1625.2,1.5991]
[1744646882960,6.15151,1625.7,1625.2,7.75211]
[1744646883129,6.15151,1625.7,1625.3,6.15243]
[1744646883464,6.15085,1625.8,1625.2,2.379311]
[1744646883666,6.15308,1625.2,1625.1,0.05]
[1744646884428,6.70308,1625.2,1625.1,0.05]
[1744646884626,11.35978,1625.2,1625.1,1e-05]
[1744646884854,22.91888284,1625.2,1625.1,1e-05]
[1744646885367,22.91888284,1625.2,1624.7,0.3917801]
[1744646885368,11.3288,1624.8,1624.7,0.3917801]
[1744646885534,11.3288,1624.8,1624.7,1e-07]
[1744646886622,11.78379833,1624.8,1624.7,1e-07]
[1744646886941,11.78379833,1624.8,1624.3,0.55]
[1744646886942,11.26611,1624.4,1624.3,0.55]
[1744646887264,9.70687,1624.2,1624.1,0.05]
[1744646887425,11.26687,1624.2,1624.1,0.05]
[1744646887621,6.76687,1624.2,1624.1,0.05]
[1744646887851,6.290401,1624.4,1624.1,0.05]
[1744646888039,6.15687,1624.2,1624.1,0.05]
[1744646888674,9.15687,1624.2,1624.1,0.05]
[1744646889049,9.70687,1624.2,1624.1,0.05]
[1744646889542,11.293223,1624.2,1624.1,0.05]
[1744646889755,16.87837144,1624.2,1624.1,0.05]
[1744646889971,12.822723,1624.2,1624.1,0.05]
[1744646890140,9.822723,1624.2,1624.1,0.05]
[1744646891178,12.822723,1624.2,1624.1,0.05]
[1744646891876,6.1588,1623.7,1623.5,0.55]
[1744646892077,7.77389,1623.8,1623.5,0.55]
[1744646892377,1.6155,1623.8,1623.5,0.55]
[1744646892583,6.15853,1623.8,1623.5,8.23417]
[1744646892766,6.1591,1623.7,1623.5,0.55]
[1744646893079,1.6437,1623.6,1623.5,0.55]
[1744646893281,6.77485,1623.7,1623.5,0.55]
[1744646893512,6.15915,1623.6,1623.5,0.55]
[1744646893854,11.24755,1623.6,1623.5,0.55]
[1744646894054,3.55,1623.5,1623.1,0.4417801]
[1744646894403,15.34841844,1623.2,1623.1,0.4417801]
[1744646894986,15.34841844,1623.2,1623.1,1e-07]
[1744646895274,6.16346,1622.5,1622.2,0.06164]
[1744646895480,7.77753,1622.9,1622.5,6.16308]
[1744646895661,1.6157,1622.9,1622.5,6.16319]
[1744646895883,0.55,1623.1,1622.9,6.16148]
[1744646896210,1.605,1623.2,1623.0,6.16142]
[1744646896504,0.55,1623.1,1622.7,6.16234]
[1744646896690,6.71129,1623.1,1622.7,6.1624]
[1744646896903,12.87254,1623.1,1622.7,6.1624]
[1744646897202,6.71125,1623.1,1622.7,12.32478]
[1744646897400,0.55,1623.1,1622.8,6.16202]
[1744646897585,0.55,1623.1,1622.5,7.55099]
[1744646897586,13.704051,1623.1,1622.7,12.32492]
[1744646897906,13.704051,1623.1,1622.7,6.16237]
[1744646898397,0.55,1623.0,1622.5,6.16331]
[1744646898604,6.71142,1623.0,1622.6,6.16278]
[1744646898810,6.992661,1623.1,1622.7,12.32512]
[1744646898811,6.992631,1623.1,1622.7,12.32512]
[1744646898971,1.5525,1623.4,1622.8,1.5501]
[1744646899170,6.16058,1623.3,1622.9,6.16172]
[1744646899381,6.16058,1623.3,1622.8,1.5501]
[1744646899382,7.71247,1623.4,1623.0,6.16118]
[1744646899593,1.5525,1623.4,1623.3,6.16029]
[1744646899865,0.32135447,1623.5,1623.1,6.16097]
[1744646900080,0.32135447,1623.5,1623.3,6.16013]
[1744646900279,6.15931,1623.6,1623.3,6.16017]
[1744646900486,12.31776,1623.7,1623.3,12.32034]
[1744646900805,6.16067,1623.2,1622.9,16.57668]
[1744646900963,0.55,1623.2,1622.7,6.16243]
[1744646901326,6.16218,1622.9,1622.6,1.653]
[1744646901469,6.1616,1623.0,1622.6,6.16272]
[1744646901793,6.16283,1622.7,1622.4,1.51]
[1744646901992,6.1614,1623.1,1622.4,1.51]
[1744646901993,0.832969,1623.2,1622.4,1.51]
[1744646902169,6.16277,1622.7,1622.4,1.51]
[1744646902368,6.71241,1622.8,1622.4,1.51]
[1744646902590,6.16323,1622.6,1622.2,6.22605]
[1744646902795,6.16262,1622.7,1622.3,6.16382]
[1744646902985,12.87459,1622.8,1622.4,12.32717]
[1744646903312,6.16272,1622.7,1622.3,6.16399]
[1744646903513,8.165189,1622.8,1622.5,6.16328]
[1744646903671,8.165189,1622.8,1622.4,6.16353]
[1744646903873,7.81649,1622.9,1622.5,12.32632]
[1744646904213,7.81649,1622.9,1622.6,6.16279]
[1744646904415,6.16105,1623.1,1622.6,1.5629]
[1744646904586,6.16105,1623.1,1622.7,6.16223]